bitfinex-derivatives/quotes_ETHF0:USTF0_20250606
["timestamp","ask_amount","ask_price","bid_price","bid_amount"]
[1749220514116,0.79804,2504.4,2504.3,2.13494]
[1749220514317,0.79804,2504.4,2504.3,1.3369]
[1749220515722,0.79804,2504.4,2504.3,2.13497]
[1749220516024,0.79804,2504.4,2504.3,1.3369]
[1749220516228,0.79804,2504.4,2504.1,3.2078]
[1749220516229,0.7981,2504.2,2504.1,3.2078]
[1749220516426,0.79816,2504.0,2503.9,0.00599006]
[1749220517018,1.77091493,2504.0,2503.9,0.00599006]
[1749220518830,4.97871493,2504.0,2503.9,0.00599006]
[1749220519629,1.77091493,2504.0,2503.9,0.07732357]
[1749220519930,19.69111,2504.2,2504.1,0.79812]
[1749220520132,25.74872966,2504.2,2504.1,0.79812]
[1749220520333,25.74872966,2504.2,2504.0,0.6627]
[1749220520334,23.978,2504.2,2504.0,0.6627]
[1749220520528,0.79813,2504.1,2504.0,1.46085]
[1749220521529,0.79813,2504.1,2504.0,0.6627]
[1749220521732,0.97138197,2504.2,2503.9,0.87551357]
[1749220521931,0.79816,2504.0,2503.9,0.07732357]
[1749220523530,0.79816,2504.0,2503.9,0.87551357]
[1749220523730,0.79816,2504.0,2503.9,0.87552357]
[1749220524436,0.79816,2504.0,2503.9,0.07732357]
[1749220524634,1.77101923,2504.0,2503.9,0.07732357]
[1749220525231,1.77101923,2504.0,2503.9,0.87551357]
[1749220525730,1.77101923,2504.0,2503.9,0.07732357]
[1749220526732,1.77101923,2504.0,2503.9,0.87551357]
[1749220527644,0.97285923,2504.0,2503.9,0.87551357]
[1749220528826,1.77101923,2504.0,2503.9,0.87551357]
[1749220529226,23.975,2504.3,2503.9,4.08331357]
[1749220529431,0.97455596,2504.2,2504.1,0.79813]
[1749220529637,0.79808,2504.3,2504.2,0.7981]
[1749220529938,0.79804,2504.4,2504.3,0.79803]
[1749220530133,1.77282905,2504.4,2504.3,0.79803]
[1749220530335,0.97478905,2504.4,2504.3,0.79803]
[1749220530733,5.08,2504.6,2504.5,0.798]
[1749220530935,6.85300964,2504.6,2504.5,0.798]
[1749220531140,6.05503964,2504.6,2504.5,0.798]
[1749220531536,6.85300964,2504.6,2504.5,0.798]
[1749220531728,6.05503964,2504.6,2504.5,4.0058]
[1749220532133,6.85300964,2504.6,2504.5,4.0058]
[1749220532430,0.97503964,2504.6,2504.5,4.0058]
[1749220532634,0.79795,2504.7,2504.6,0.79793]
[1749220532835,1.77315161,2504.7,2504.6,0.79793]
[1749220533338,0.79803,2504.4,2504.3,2.14634]
[1749220533642,5.2026,2504.8,2504.4,0.79801]
[1749220533643,0.79802,2504.5,2504.4,0.79801]
[1749220533835,0.79795,2504.7,2504.6,0.79794]
[1749220534033,1.77358074,2504.7,2504.6,0.79794]
[1749220534834,0.97563074,2504.7,2504.6,0.79794]
[1749220535236,0.79788,2504.9,2504.0,3.99082]
[1749220535237,0.97611681,2504.8,2504.5,4.4681]
[1749220535439,0.97611681,2504.7,2504.6,0.79794]
[1749220535637,1.77406681,2504.7,2504.6,0.79794]
[1749220537836,0.798,2504.5,2504.4,0.79802]
[1749220538136,0.79792,2504.8,2504.7,0.79791]
[1749220538444,0.97629256,2504.8,2504.7,0.79791]
[1749220538839,1.77420256,2504.8,2504.7,0.79791]
[1749220539638,1.77420256,2504.8,2504.5,3.2078]
[1749220539943,1.77425256,2504.7,2504.6,2.08464]
[1749220540946,0.97629256,2504.7,2504.6,2.08464]
[1749220541137,0.00599006,2505.4,2505.3,0.79775]
[1749220541339,0.79776,2505.3,2505.2,0.79775]
[1749220541534,0.79776,2505.3,2505.1,3.2078]
[1749220541535,0.00599006,2505.4,2505.3,0.79775]
[1749220542035,0.80370006,2505.4,2505.3,0.79775]
[1749220542236,0.79778,2505.2,2505.1,3.2078]
[1749220542436,0.79783,2505.1,2504.7,3.2078]
[1749220542647,5.7189,2505.3,2505.0,0.79782]
[1749220542939,0.79782,2505.1,2505.0,4.00562]
[1749220543243,0.7978,2505.2,2505.1,0.79778]
[1749220543948,0.79779,2505.3,2505.2,0.79776]
[1749220544138,0.00599006,2505.4,2505.3,0.79775]
[1749220544338,0.80370006,2505.4,2505.3,4.00555]
[1749220544939,0.80370006,2505.4,2505.3,0.79775]
[1749220545236,0.00599006,2505.4,2505.2,0.6906]
[1749220545541,0.79775,2505.3,2505.2,1.48836]
[1749220546143,0.79775,2505.3,2505.2,1.48838]
[1749220547142,0.80370006,2505.4,2505.3,0.79775]
[1749220547442,0.00599006,2505.4,2505.2,3.8984]
[1749220547649,0.80374006,2505.4,2505.3,0.79775]
[1749220548246,0.00599006,2505.4,2505.3,0.79775]
[1749220548443,0.00599006,2505.4,2505.2,4.69616]
[1749220548746,0.79775,2505.3,2505.2,4.69616]
[1749220549545,0.79775,2505.3,2505.2,5.33496]
[1749220549747,0.80373006,2505.4,2505.3,0.79775]
[1749220550247,0.00599006,2505.4,2505.3,0.79775]
[1749220550749,0.00599006,2505.4,2505.3,2.18125]
[1749220551343,0.80370006,2505.4,2505.3,2.18125]
[1749220551649,0.00599006,2505.4,2505.3,2.18125]
[1749220552149,0.80370006,2505.4,2505.3,2.18125]
[1749220552445,0.00599006,2505.4,2505.3,2.18125]
[1749220553051,0.79747,2506.3,2506.2,0.79744]
[1749220553349,5.077,2506.4,2505.9,5.88766]
[1749220553547,0.79745,2506.3,2506.2,0.79743]
[1749220553739,5.87441,2506.4,2506.3,0.79743]
[1749220553941,0.79741,2506.4,2506.3,0.79743]
[1749220554146,0.6728,2506.5,2506.4,0.7974]
[1749220554348,1.47016,2506.5,2506.4,0.7974]
[1749220554544,0.79741,2506.4,2506.3,0.7974]
[1749220554747,0.79743,2506.3,2506.2,4.00524]
[1749220555246,0.79739,2506.5,2506.4,0.7974]
[1749220555441,0.79742,2506.4,2506.2,4.5057]
[1749220555751,0.79743,2506.3,2506.2,4.00525]
[1749220557450,0.79743,2506.3,2506.2,3.2078]
[1749220557652,0.79743,2506.3,2506.2,4.00526]
[1749220558250,0.79742,2506.4,2506.3,0.79741]
[1749220558549,0.79739,2506.5,2506.4,0.79736]
[1749220558748,0.79741,2506.4,2506.3,0.7974]
[1749220559451,0.79743,2506.3,2506.2,4.00524]
[1749220559950,0.79743,2506.3,2506.2,3.2078]
[1749220560355,0.79743,2506.3,2506.2,4.00526]
[1749220560652,0.79743,2506.3,2506.2,3.2078]
[1749220561049,0.79746,2506.2,2506.1,0.80348006]
[1749220561851,0.79746,2506.2,2506.1,0.00599006]
[1749220562052,0.79746,2506.2,2506.1,0.80348006]
[1749220562253,0.79746,2506.2,2506.1,0.00599006]
[1749220562557,0.79746,2506.2,2506.1,0.80348006]
[1749220563556,0.79746,2506.2,2506.1,0.00599006]
[1749220563853,0.79746,2506.2,2506.1,0.80348006]
[1749220564251,0.79746,2506.2,2506.1,0.00599006]
[1749220564955,0.00599006,2506.6,2506.5,0.79736]
[1749220565254,0.80332006,2506.6,2506.5,0.79736]
[1749220565647,0.00599006,2506.6,2506.5,4.00516]
[1749220566343,9.36192394,2507.1,2506.7,1.9932]
[1749220566344,0.79722,2507.1,2506.7,1.9932]
[1749220566553,8.2768,2507.4,2506.8,5.8938]
[1749220566753,0.79711,2507.3,2507.2,3.2078]
[1749220567461,0.79711,2507.3,2507.2,4.00494]
[1749220567653,0.79711,2507.3,2507.2,3.2078]
[1749220568156,0.7972,2507.1,2507.0,0.7972]
[1749220568354,3.27194,2507.3,2506.8,4.5232]
[1749220568658,3.27194,2507.3,2506.9,0.79724]
[1749220568958,0.79724,2506.9,2506.8,3.866]
[1749220569251,0.79724,2506.9,2506.8,3.2078]
[1749220569654,0.79724,2506.9,2506.4,0.635]
[1749220569655,5.069,2506.9,2506.4,3.8428]
[1749220569960,5.069,2506.9,2506.1,0.00599006]
[1749220569961,0.79746,2506.2,2506.1,0.00599006]
[1749220571356,0.79746,2506.2,2506.1,0.80348006]
[1749220571558,9.70025,2506.5,2506.1,0.00599006]
[1749220571758,0.79746,2506.2,2506.1,0.00599006]
[1749220572155,2.13876,2506.2,2506.1,0.00599006]
[1749220572349,3.09643431,2506.2,2506.1,0.00599006]
[1749220573861,1.75513431,2506.2,2506.1,0.00599006]
[1749220574060,0.79746,2506.2,2506.1,0.00599006]
[1749220575969,0.79746,2506.2,2506.1,0.80348006]
[1749220576866,7.6641,2506.5,2506.1,0.00599006]
[1749220577058,0.95704152,2506.4,2506.3,3.2078]
[1749220577259,0.95704152,2506.4,2506.3,4.00523]
[1749220577260,0.7974,2506.4,2506.3,4.00523]
[1749220577459,0.7974,2506.4,2506.3,3.2078]
[1749220578365,1.75477516,2506.4,2506.3,4.00523]
[1749220578558,1.75477516,2506.4,2506.3,3.2078]
[1749220578758,0.79746,2506.2,2506.1,0.00599006]
[1749220578954,0.79746,2506.2,2506.1,0.80348006]
[1749220579368,0.79746,2506.2,2506.1,0.00599006]
[1749220580270,0.79746,2506.2,2506.1,0.80348006]
[1749220580461,0.79746,2506.2,2506.1,0.00599006]
[1749220580862,0.79746,2506.2,2506.1,0.80348006]
[1749220581062,0.79744,2506.3,2506.2,0.79743]
[1749220581562,20.84836,2506.6,2506.1,0.00599006]
[1749220581563,0.79746,2506.2,2506.1,0.00599006]
[1749220581961,1.75557006,2506.2,2506.1,0.00599006]
[1749220582964,1.75557006,2506.2,2506.1,0.80348006]
[1749220583572,1.75557006,2506.2,2506.1,0.00599006]
[1749220584767,0.79759,2505.8,2505.7,3.2078]
[1749220584970,1.75570006,2505.8,2505.7,3.2078]
[1749220586077,0.79765,2505.6,2505.5,0.80365006]
[1749220586471,0.79765,2505.6,2505.5,0.00599006]
[1749220587070,6.81940923,2505.6,2505.5,0.00599006]
[1749220587260,8.73450923,2505.6,2505.5,0.00599006]
[1749220587467,0.79778,2505.2,2505.1,0.79779]
[1749220587667,6.9781,2505.6,2505.0,0.6887]
[1749220587866,0.79775,2505.3,2505.2,0.79775]
[1749220588066,0.79779,2505.2,2505.1,0.79779]
[1749220588368,0.79776,2505.3,2505.2,0.79775]
[1749220588768,0.79776,2505.3,2505.2,0.79778]
[1749220590773,0.79781,2505.2,2505.1,0.7978]
[1749220591975,0.79777,2505.3,2505.2,0.79773]
[1749220592377,0.79781,2505.2,2505.1,0.79778]
[1749220593068,0.79781,2505.1,2505.0,0.69469006]
[1749220593267,0.79781,2505.1,2505.0,0.00599006]
[1749220593676,3.72114202,2505.1,2505.0,0.00599006]
[1749220594667,3.72114202,2505.1,2505.0,0.07732357]
[1749220595277,4.03462893,2505.1,2505.0,0.07732357]
[1749220596380,26.30364202,2505.1,2505.0,0.07732357]
[1749220596582,25.35371,2505.1,2505.0,0.07732357]
[1749220596883,23.919,2505.1,2505.0,0.07732357]
[1749220597079,23.919,2505.1,2505.0,0.87514357]
[1749220597274,5.065,2505.4,2505.3,0.79775]
[1749220597479,6.51489,2505.9,2505.8,0.79759]
[1749220597780,5.065,2505.9,2505.8,0.79759]
[1749220597980,0.79757,2505.9,2505.8,0.79756]
[1749220598179,0.79762,2505.7,2505.6,1.3344]
[1749220598482,0.79761,2505.8,2505.7,0.7976]
[1749220599978,48.06099006,2506.0,2505.7,0.7976]
[1749220600182,48.06099006,2506.0,2505.6,1.3344]
[1749220600183,0.79757,2505.9,2505.8,0.79755]
[1749220600876,24.13999006,2506.0,2505.9,0.79755]
[1749220601096,0.79759,2505.9,2505.8,0.79757]
[1749220601683,0.79759,2505.8,2505.7,2.0535]
[1749220601980,0.79762,2505.7,2505.6,1.3344]
[1749220602174,0.79775,2505.4,2505.3,0.79773]
[1749220602376,0.79775,2505.4,2505.3,1.46073]
[1749220602577,0.79771,2505.5,2505.4,0.79769]
[1749220602987,0.79771,2505.4,2505.3,0.663]
[1749220603681,0.79771,2505.4,2505.3,1.46075]
[1749220604790,0.7977,2505.5,2505.4,0.79768]
[1749220604987,5.86167,2505.6,2505.5,0.79768]
[1749220606689,0.79771,2505.5,2505.4,0.79769]
[1749220607079,5.86167,2505.6,2505.5,0.79768]
[1749220608788,24.71267,2505.6,2505.5,0.79768]
[1749220609291,0.79763,2505.7,2505.6,0.79762]
[1749220609489,0.79768,2505.6,2505.5,0.79766]
[1749220609682,24.86611786,2505.7,2505.4,0.79769]
[1749220609683,0.79768,2505.5,2505.4,0.79769]
[1749220610479,23.914,2505.7,2505.3,2.65732]
[1749220610786,0.79771,2505.5,2505.4,0.79771]
[1749220611686,0.79771,2505.4,2505.3,1.46072]
[1749220611990,0.79771,2505.4,2505.3,2.79562]
[1749220612989,0.7977,2505.6,2505.5,0.79766]
[1749220613198,1.72099298,2505.6,2505.5,0.79766]
[1749220613789,20.56999298,2505.6,2505.5,0.79766]
[1749220614192,1.72096298,2505.6,2505.5,0.79768]
[1749220614489,1.72094298,2505.6,2505.5,0.79768]
[1749220614985,1.72094298,2505.6,2505.3,2.06923351]
[1749220614986,0.92329298,2505.6,2505.3,2.06923351]
[1749220615194,0.79771,2505.5,2505.4,0.79769]
[1749220616395,0.79769,2505.6,2505.5,0.79765]
[1749220616693,1.72060115,2505.6,2505.5,0.79765]
[1749220618090,24.70163,2505.7,2505.6,0.79765]
[1749220618294,25.62478444,2505.7,2505.6,0.79765]
[1749220618495,0.79765,2505.6,2505.5,4.00546]
[1749220618690,1.72080444,2505.6,2505.5,4.00546]
[1749220621796,0.00599006,2506.0,2505.9,0.79756]
[1749220622295,8.2648,2507.0,2506.0,3.98762]
[1749220622494,0.79733,2506.7,2506.6,0.79731]
[1749220622699,5.057,2507.0,2506.6,0.6594]
[1749220622887,1.72074392,2506.9,2506.8,0.79727]
[1749220623090,0.79726,2506.9,2506.8,0.79727]
[1749220623793,0.79726,2506.9,2506.8,4.00507]
[1749220623999,0.79724,2506.9,2506.8,4.00504]
[1749220624693,0.00599006,2507.1,2507.0,0.79721]
[1749220625399,0.00599006,2507.1,2507.0,1.44951]
[1749220625594,0.80316006,2507.1,2507.0,0.6523]
[1749220625795,0.80316006,2507.1,2507.0,1.44951]
[1749220626302,0.00599006,2507.1,2507.0,1.44951]
[1749220627196,0.80316006,2507.1,2507.0,1.44951]
[1749220628798,0.00599006,2507.1,2507.0,1.44951]
[1749220629386,0.80316006,2507.1,2507.0,1.44951]
[1749220629991,0.80316006,2507.1,2507.0,0.6523]
[1749220630702,0.80316006,2507.1,2507.0,1.44951]
[1749220630996,0.80316006,2507.1,2507.0,0.6523]
[1749220631196,0.00599006,2507.1,2507.0,1.44951]
[1749220631404,0.80316006,2507.1,2507.0,0.6523]
[1749220631701,1.99302,2507.0,2506.6,0.66539006]
[1749220631900,0.7973,2506.7,2506.6,0.66539006]
[1749220632802,0.7973,2506.7,2506.6,0.00599006]
[1749220633396,1.38,2506.8,2506.7,0.7973]
[1749220633397,0.79728,2506.8,2506.7,0.7973]
[1749220633699,1.99894006,2507.1,2507.0,0.79721]
[1749220633700,6e-08,2507.1,2507.0,0.79721]
[1749220633909,6e-08,2507.1,2507.0,4.00501]
[1749220634199,6e-08,2507.1,2507.0,9.00501]
[1749220634397,6e-08,2507.1,2507.0,9.67021]
[1749220634597,6e-08,2507.1,2507.0,4.67021]
[1749220638205,0.79717006,2507.1,2507.0,4.67021]
[1749220638699,0.79717006,2507.1,2506.7,2.63186]
[1749220638700,1.99297006,2507.1,2506.7,3.8464]
[1749220638900,1.99297006,2507.1,2506.8,0.79725]
[1749220638901,0.79727,2506.9,2506.8,0.79725]
[1749220640604,0.79727,2506.9,2506.7,3.8464]
[1749220640605,5.05400006,2507.1,2506.7,3.2078]
[1749220640811,0.7973,2506.7,2506.6,0.00599006]
[1749220641005,0.7973,2506.7,2506.6,0.80332006]
[1749220641006,24.6773,2506.7,2506.6,0.80332006]
[1749220641204,0.7973,2506.7,2506.6,0.80332006]
[1749220641409,5.8513,2506.7,2506.6,0.80332006]
[1749220642607,5.8513,2506.7,2506.6,0.07732357]
[1749220643004,1.99334,2506.6,2505.5,5.054]
[1749220643301,1.99352,2506.4,2505.6,1.99413]
[1749220643506,0.79755,2506.0,2505.9,0.79756]
[1749220644305,19.62351,2506.1,2506.0,0.79752]
[1749220644709,23.88,2506.5,2505.9,1.99388]
[1749220644905,0.79749,2506.2,2506.1,0.79747]
[1749220645302,0.79745,2506.3,2506.2,0.79743]
[1749220645705,0.79741,2506.4,2506.3,0.7974]
[1749220646008,0.79741,2506.4,2506.1,2.06433351]
[1749220646009,0.79746,2506.2,2506.1,2.86180351]
[1749220646616,0.79746,2506.2,2506.1,2.79047]
[1749220646919,0.79746,2506.2,2506.1,1.43037]
[1749220647115,0.79746,2506.2,2506.1,0.6329]
[1749220650120,0.79746,2506.2,2506.1,1.43039]
[1749220650712,4.00526,2506.2,2506.1,0.6329]
[1749220650923,0.79749,2506.1,2506.0,0.07133351]
[1749220651118,2.11309,2506.1,2506.0,0.07133351]
[1749220651618,0.79752,2506.0,2505.9,0.79754]
[1749220651825,5.84552,2506.0,2505.9,0.79754]
[1749220653116,0.79759,2505.9,2505.8,0.79758]
[1749220654221,5.84554,2506.0,2505.9,0.79756]
[1749220655729,0.79759,2505.9,2505.8,0.79757]
[1749220656229,5.84555,2506.0,2505.9,0.79756]
[1749220658434,0.79759,2505.9,2505.8,0.79757]
[1749220658729,5.048,2506.0,2505.7,0.80360006]
[1749220659026,5.84554,2506.0,2505.9,0.79756]
[1749220659730,5.048,2506.0,2505.9,0.79756]
[1749220660034,6.50835,2506.4,2506.3,0.79743]
[1749220660235,5.7109,2506.4,2506.3,0.79743]
[1749220660434,5.7109,2506.4,2506.2,0.79744]
[1749220660635,0.79746,2506.3,2506.2,0.79744]
[1749220661634,0.79746,2506.2,2506.1,1.42447]
[1749220661834,0.79746,2506.3,2506.2,0.79743]
[1749220662128,4.00526,2506.3,2506.2,0.79743]
[1749220662325,6.9619,2506.4,2506.1,1.42448]
[1749220662326,0.79746,2506.2,2506.1,1.42448]
[1749220662730,0.79746,2506.2,2506.1,0.627]
[1749220662930,0.79746,2506.2,2506.1,1.42449]
[1749220663737,27.0788,2506.3,2506.2,0.79746]
[1749220663738,4.00526,2506.3,2506.2,0.79746]
[1749220663937,5.048,2506.3,2506.2,0.79746]
[1749220664235,0.79746,2506.2,2506.1,1.42446]
[1749220664537,0.79746,2506.2,2506.1,0.627]
[1749220665238,0.79752,2506.0,2505.9,1.45523]
[1749220670036,0.79759,2505.8,2505.7,0.80361006]
[1749220670533,1.71185821,2505.8,2505.7,0.80361006]
[1749220670734,8.21e-06,2505.8,2505.7,0.80361006]
[1749220670926,11.41515143,2506.9,2506.5,0.79736]
[1749220671133,0.79726,2506.9,2506.8,0.79727]
[1749220671335,24.66426,2506.9,2506.8,0.79727]
[1749220671536,0.7973,2506.8,2506.7,0.79728]
[1749220672738,0.79727,2506.9,2506.8,0.79724]
[1749220673136,0.7973,2506.7,2506.6,2.04961]
[1749220673340,0.79729,2506.8,2506.7,0.79727]
[1749220673937,0.79736,2506.6,2506.5,0.79734]
[1749220674636,23.86400006,2507.1,2507.0,0.79721]
[1749220674837,6e-08,2507.1,2507.0,0.79721]
[1749220675541,6e-08,2507.1,2507.0,2.05261]
[1749220677534,6e-08,2507.1,2507.0,7.05261]
[1749220680241,6e-08,2507.1,2507.0,2.05261]
[1749220680745,6e-08,2507.1,2507.0,9.42768931]
[1749220681139,6e-08,2507.1,2507.0,7.05261]
[1749220681342,6e-08,2507.1,2507.0,9.42768931]
[1749220682042,6e-08,2507.1,2507.0,7.05261]
[1749220682944,6e-08,2507.1,2507.0,2.05261]
[1749220683138,6e-08,2507.1,2507.0,7.09161]
[1749220688953,6e-08,2507.1,2507.0,5.83621]
[1749220689151,6e-08,2507.1,2507.0,0.79721]
[1749220689347,3.20780006,2507.1,2507.0,0.79721]
[1749220689655,6e-08,2507.1,2507.0,0.79721]
[1749220691257,6e-08,2507.1,2507.0,2.06171]
[1749220693760,6e-08,2507.1,2507.0,7.06171]
[1749220696157,6e-08,2507.1,2507.0,2.06171]
[1749220697254,6e-08,2507.1,2507.0,0.79721]
[1749220702153,0.79717006,2507.1,2507.0,0.79721]
[1749220702556,0.79721,2507.0,2506.9,1.79722]
[1749220702754,3.53121,2507.0,2506.9,1.79722]
[1749220703155,2.734,2507.0,2506.9,1.79722]
[1749220703351,3.62061072,2507.0,2506.9,1.79722]
[1749220703659,2.734,2507.0,2506.9,1.79722]
[1749220703860,3.6206298,2507.0,2506.9,1.79722]
[1749220704064,0.6797,2507.0,2506.9,1.79722]
[1749220706262,1.47691,2507.0,2506.9,1.79722]
[1749220706465,6.90428372,2507.0,2506.9,1.79722]
[1749220707460,6.01881,2507.0,2506.9,1.79722]
[1749220707662,2.0138,2507.0,2506.9,1.79722]
[1749220709158,2.81101,2507.0,2506.9,1.79722]
[1749220709463,3.69607775,2507.0,2506.9,1.79722]
[1749220709863,6.90387775,2507.0,2506.9,1.0]
[1749220710065,6.90387775,2507.0,2506.9,1.79724]
[1749220710360,6.90387775,2507.0,2506.5,0.79733]
[1749220710361,0.79736,2506.6,2506.5,0.79733]
[1749220710560,1.9932,2506.8,2506.5,0.79733]
[1749220710561,5.03,2506.8,2506.5,1.99341]
[1749220710762,7.75341,2506.8,2506.7,0.7973]
[1749220711357,0.79736,2506.7,2506.6,0.79732]
[1749220711558,2.09546,2506.7,2506.6,0.79732]
[1749220712461,0.79739,2506.6,2506.5,0.79734]
[1749220712659,2.77299,2506.6,2506.5,0.79734]
[1749220713358,1.9756,2506.6,2506.5,0.79734]
[1749220713558,0.6448,2506.6,2506.5,0.79734]
[1749220713865,0.6448,2506.6,2506.4,5.20126]
[1749220713866,18.792,2506.6,2506.4,5.20126]
[1749220714160,5.03,2507.0,2506.9,0.79724]
[1749220714354,24.71252501,2507.0,2506.9,0.79724]
[1749220714555,23.822,2507.0,2506.9,0.79724]
[1749220714755,19.43680006,2507.1,2507.0,0.79721]
[1749220715163,0.64480006,2507.1,2507.0,0.79721]
[1749220715955,1.44197006,2507.1,2507.0,0.79721]
[1749220716158,0.79724,2507.0,2506.9,0.79722]
[1749220716366,0.79728,2506.9,2506.8,0.79725]
[1749220717952,0.79728,2506.9,2506.5,2.68415]
[1749220717953,0.79733,2506.7,2506.6,0.79729]
[1749220718155,2.13099,2506.8,2506.7,0.7973]
[1749220719366,0.79733,2506.7,2506.6,0.79732]
[1749220719666,0.79742,2506.4,2506.3,0.79738]
[1749220719861,0.79746,2506.3,2506.2,0.79744]
[1749220720067,2.77236,2506.3,2506.2,0.79744]
[1749220720659,1.9749,2506.3,2506.2,0.79744]
[1749220720860,0.6412,2506.3,2506.2,0.79744]
[1749220721662,19.4302,2506.3,2506.2,0.79744]
[1749220721967,0.79748,2506.2,2506.1,0.79746]
[1749220723269,21.56085,2506.3,2506.2,0.79746]
[1749220723463,20.22765,2506.3,2506.2,0.79746]
[1749220723669,19.4302,2506.3,2506.2,0.79746]
[1749220724362,0.79742,2506.4,2506.3,0.79743]
[1749220724562,19.58642,2506.4,2506.3,0.79743]
[1749220726763,18.789,2506.4,2506.3,0.79743]
[1749220726966,18.789,2506.4,2506.1,1.99373]
[1749220726967,5.03,2506.5,2506.4,0.7974]
[1749220727269,24.61536,2506.5,2506.4,0.7974]
[1749220727667,4.00516,2506.6,2506.5,0.79736]
[1749220727866,28.73047254,2506.6,2506.5,0.79736]
[1749220728169,0.79739,2506.5,2506.4,0.79736]
[1749220728565,0.79739,2506.5,2506.4,0.7974]
[1749220729271,18.787,2506.5,2506.2,1.99365]
[1749220729470,0.7974,2506.4,2506.3,1.472]
[1749220732469,19.58437,2506.5,2506.4,0.7974]
[1749220732666,20.50281484,2506.5,2506.4,0.7974]
[1749220732864,0.91844484,2506.5,2506.4,0.7974]
[1749220733074,24.61431,2506.7,2506.6,0.79733]
[1749220733370,25.53228407,2506.7,2506.6,0.79733]
[1749220734173,0.7974,2506.4,2506.3,1.47199]
[1749220734673,0.79739,2506.5,2506.4,0.79736]
[1749220734875,1.71563174,2506.5,2506.4,0.79736]
[1749220735376,0.91824174,2506.5,2506.4,0.79736]
[1749220735574,19.70324174,2506.5,2506.4,0.79736]
[1749220736370,20.50060174,2506.5,2506.4,0.79736]
[1749220737975,0.7974,2506.4,2506.3,1.47201]
[1749220738176,1.71564174,2506.4,2506.3,1.47201]
[1749220740270,0.79746,2506.3,2506.1,0.6637]
[1749220740476,0.79746,2506.3,2506.2,0.79743]
[1749220740674,0.79746,2506.3,2506.2,1.44103]
[1749220741971,1.71700863,2506.3,2506.2,1.44103]
[1749220744579,0.91954863,2506.3,2506.2,1.44103]
[1749220744880,0.79746,2506.2,2506.1,1.46118]
[1749220745777,0.6918,2506.6,2506.2,1.9936]
[1749220745981,20.49759042,2506.5,2506.4,0.79736]
[1749220746574,0.79746,2506.2,2506.1,1.46117]
[1749220746774,0.79749,2506.1,2506.0,0.6893]
[1749220747078,1.71816954,2506.1,2506.0,1.48682]
[1749220748170,1.71816954,2506.1,2506.0,0.6893]
[1749220748380,0.79754,2506.0,2505.9,0.79752]
[1749220748578,1.71821954,2506.0,2505.9,0.79752]
[1749220749285,0.92067954,2506.0,2505.9,0.79752]
[1749220749574,18.777,2506.3,2506.0,3.98762]
[1749220749780,0.93049975,2506.2,2506.1,0.79749]
[1749220749983,18.777,2506.3,2506.2,0.79746]
[1749220750176,19.70754647,2506.3,2506.2,0.79746]
[1749220750684,1.72797647,2506.3,2506.2,0.79746]
[1749220752983,0.79746,2506.2,2506.1,1.48727]
[1749220753183,1.72800647,2506.2,2506.1,1.48727]
[1749220753579,0.93054647,2506.2,2506.1,1.48727]
[1749220753785,18.776,2506.4,2506.3,0.79743]
[1749220754084,3.2078,2506.7,2506.6,0.79733]
[1749220754284,4.13782259,2506.7,2506.6,0.79733]
[1749220754681,4.93512259,2506.7,2506.6,0.79733]
[1749220755088,1.72732259,2506.7,2506.6,0.79733]
[1749220755386,0.79733,2506.6,2506.5,1.43203]
[1749220755587,0.79733,2506.6,2506.5,2.76253]
[1749220755787,0.79732,2506.7,2506.6,0.7973]
[1749220755985,1.72750673,2506.7,2506.6,0.7973]
[1749220756986,0.93018673,2506.7,2506.6,0.7973]
[1749220757286,1.72748673,2506.7,2506.6,0.7973]
[1749220758083,0.93018673,2506.7,2506.6,0.7973]
[1749220758385,6e-08,2507.1,2506.8,1.99318]
[1749220758687,6e-08,2507.1,2507.0,0.79721]
[1749220758887,6e-08,2507.1,2507.0,2.70001]
[1749220759485,0.79717006,2507.1,2507.0,2.70001]
[1749220759688,6e-08,2507.1,2507.0,2.70001]
[1749220762683,0.79717006,2507.1,2507.0,2.70001]
[1749220762990,6e-08,2507.1,2507.0,0.6459]
[1749220763592,0.79717006,2507.1,2507.0,1.44311]
[1749220764688,6e-08,2507.1,2507.0,1.44311]
[1749220765391,6e-08,2507.1,2507.0,2.71571]
[1749220765791,6e-08,2507.1,2507.0,7.71571]
[1749220773399,6e-08,2507.1,2507.0,2.71571]
[1749220773587,6e-08,2507.1,2507.0,7.71571]
[1749220774495,6e-08,2507.1,2507.0,2.71571]
[1749220776493,6e-08,2507.1,2507.0,1.44311]
[1749220782302,6e-08,2507.1,2507.0,2.73791]
[1749220782700,6e-08,2507.1,2507.0,7.73791]
[1749220783202,6e-08,2507.1,2507.0,10.87652761]
[1749220783505,6e-08,2507.1,2507.0,7.73791]
[1749220784692,24.3929,2508.5,2508.2,0.79676]
[1749220784908,24.3929,2508.5,2508.4,0.7967]
[1749220784909,5.6459,2508.5,2508.4,0.7967]
[1749220785100,6.9208,2508.5,2508.4,0.7967]
[1749220785497,5.008,2508.8,2508.7,0.79659]
[1749220785699,24.68587415,2508.8,2508.7,0.79659]
[1749220785903,29.54857,2508.8,2508.7,0.79659]
[1749220786208,30.0269,2508.8,2508.7,0.79659]
[1749220786502,30.0269,2508.8,2508.6,0.79661]
[1749220786699,25.0269,2508.8,2508.5,0.80263006]
[1749220786898,0.79663,2508.6,2508.5,0.80263006]
[1749220787299,0.79663,2508.6,2508.5,0.80265006]
[1749220787501,7.07948,2508.8,2508.5,0.00599006]
[1749220787702,7.07948,2508.8,2508.7,0.7966]
[1749220787906,6.2829,2508.8,2508.7,0.7966]
[1749220788297,1.2749,2508.8,2508.7,0.7966]
[1749220788501,2.07147,2508.8,2508.7,0.7966]
[1749220789001,2.07149,2508.8,2508.7,0.7966]